lending/lending_fUSD_20240721
["ID","MTS","AMOUNT","RATE_DAILY","PERIOD"]
[332863993,1721596243059,-150.0,0.00011771,2]
[332863996,1721596243069,-1367.54125336,0.00011771,2]
[332863999,1721596243078,-240.38379431,0.00011775,2]
[332864001,1721596243087,-150.29633,0.00011781,2]
[332864003,1721596243097,-11498.63246829,0.0001179,2]
[332864005,1721596243106,-247.952683,0.000118,2]
[332864007,1721596243115,-1000.0,0.000118,2]
[332864010,1721596243126,-1105.7059,0.000118,2]
[332864013,1721596243137,-334.5742,0.000118,2]
[332864015,1721596243147,-219.99241863,0.000118,4]
[332864017,1721596243156,-250000.0,0.000118,2]
[332864019,1721596243165,-1235.6588,0.000118,2]
[332864021,1721596243176,-173.97809351,0.000118,2]
[332864023,1721596243186,-332.57113238,0.000118,2]
[332864025,1721596243197,-240.38379431,0.000118,2]
[332864027,1721596243206,-150.77817906,0.000118,2]
[332864029,1721596243219,-19248.87631236,0.000118,2]
[332864031,1721596243228,-500.0,0.00011805,2]
[332864032,1721596243241,-500.0,0.00011805,2]
[332864034,1721596243250,-5611.12090672,0.0001185,2]
[332864036,1721596243259,-186.8,0.00011859,2]
[332864038,1721596243269,-3105.0556379,0.00011893,2]
[332864040,1721596243278,-2305.04596217,0.00011899,2]
[332864042,1721596243287,-308216.13083363,0.000119,2]
[332864044,1721596243298,-2192.96949,0.000119,2]
[332864046,1721596243309,-5327.57682,0.000119,2]
[332864048,1721596243320,-55943.36323194,0.000119,2]
[332864051,1721596243341,-18270.545496,0.000119,2]
[332864053,1721596243354,-2804.45,0.000119,2]
[332864268,1721596245790,-332.83,0.000118,2]
[332864281,1721596245920,-7167.17,0.000118,2]
[332864283,1721596245932,-404413.58455009,0.000119,2]
[332864288,1721596245961,-6317.86258978,0.000119,2]
[332864296,1721596245999,-183.64362293,0.000118,2]
[332864299,1721596246010,-1445.73459947,0.000119,2]
[332864302,1721596246022,-1357.61256724,0.000119,2]
[332864307,1721596246038,-7069.64315569,0.000119,2]
[332864310,1721596246049,-3001.3,0.000119,2]
[332864320,1721596246102,-1702.62345,0.000119,2]
[332864333,1721596246220,-380.34541189,0.000119,2]
[332864607,1721596253048,600.0,0.00025,120]
[332864608,1721596410773,500.0,0.00025,110]
[332864609,1721596610582,500.0,0.00025,110]
[332864610,1721596930047,958.12,8.831e-05,2]
[332864647,1721597431988,-244.479751,0.000101,2]
[332864648,1721597431999,-186.61,0.00010554,2]
[332864649,1721597432009,-176.09,0.00010557,2]
[332864650,1721597432019,-1367.32,0.00010561,2]
[332864651,1721597432029,-1000.0,0.00010624,2]
[332864652,1721597432039,-300.0,0.00010703,2]
[332864653,1721597432050,-300.0,0.00010703,2]
[332864654,1721597432060,-150.0,0.00010703,2]
[332864655,1721597432070,-155.0,0.00010704,2]
[332864656,1721597432082,-155.0,0.00010704,2]
[332864657,1721597432091,-171.52618078,0.00010704,2]
[332864658,1721597432101,-155.0,0.00010704,2]
[332864659,1721597432111,-946.66950163,0.00010704,2]
[332864660,1721597432120,-165.21,0.00010706,2]
[332864661,1721597432131,-165.21,0.00010759,2]
[332864662,1721597432141,-250.0,0.00010833,2]
[332864663,1721597432151,-500.0,0.00010959,2]
[332864664,1721597432160,-183.81,0.00011021,2]
[332864665,1721597432169,-420.03,0.00011041,2]
[332864666,1721597432179,-570.18124445,0.00011041,2]
[332864667,1721597432191,-263.20875555,0.00011041,2]
[332864668,1721597432200,-291.07478445,0.00011041,2]
[332864669,1721597432212,-128.95521555,0.00011041,2]
[332864670,1721597432222,-833.39,0.00011041,2]
[332864671,1721597432232,-420.03,0.00011041,2]
[332864672,1721597432241,-833.39,0.00011041,2]
[332864673,1721597432251,-420.03,0.00011041,2]
[332864674,1721597432260,-429.49256863,0.00011041,2]
[332864675,1721597432288,-254.68592052,0.00011041,2]
[332864676,1721597432300,-149.21151085,0.00011041,2]
[332864677,1721597432309,-699.28,0.00011041,2]
[332864678,1721597432319,-833.39,0.00011041,2]
[332864679,1721597432329,-19.88122144,0.00011041,2]
[332864680,1721597432340,-813.50877856,0.00011041,2]
[332864681,1721597432349,-958.12,0.00011095,2]
[332864682,1721597432360,-420.03,0.000111,2]
[332864683,1721597432369,-833.39,0.000111,2]
[332864684,1721597432379,-520.47407732,0.00011105,2]
[332864685,1721597432390,-764.60626949,0.00011105,2]
[332864691,1721597437911,-597.755,0.00011105,2]
[332864695,1721597438019,-7374.84003516,0.00011105,2]
[332864696,1721597438031,-298.21640543,0.00011105,2]
[332864697,1721597438042,-297.12557436,0.00011105,2]
[332864698,1721597438111,-671.74442564,0.00011105,2]
[332864699,1721597438121,-774.6813337,0.00011105,2]
[332864700,1721597438133,-998.84077999,0.00011105,2]
[332864701,1721597438146,-2976.27273711,0.00011105,2]
[332864705,1721597439973,-646.32299992,0.00011105,2]
[332864706,1721597439983,-616.24383008,0.00011105,2]
[332864707,1721597440018,-5209.74214749,0.00011105,2]
[332864789,1721597442112,-1529.57613526,0.00011105,2]
[332864791,1721597442128,-351.245,0.00011105,2]
[332864794,1721597442144,-6616.25144749,0.00011105,2]
[332864797,1721597442157,-347.18365579,0.00011105,2]
[332864799,1721597442170,-756.08487059,0.00011105,2]
[332864802,1721597442184,-156.66298268,0.00011105,2]
[332864804,1721597442199,-1073.15860955,0.00011105,2]
[332864807,1721597442212,-531.52423191,0.00011105,2]
[332864809,1721597442227,-2837.16238839,0.00011105,2]
[332864812,1721597442241,-155.29460536,0.00011105,2]
[332864814,1721597442255,-155.0,0.00011105,2]
[332864817,1721597442269,-218.59114644,0.00011105,2]
[332864819,1721597442285,-155.33944343,0.00011105,2]
[332864821,1721597442303,-1296.43589473,0.00011105,2]
[332864824,1721597442317,-254.72693387,0.00011105,2]
[332864826,1721597442331,-164.02052985,0.00011105,2]
[332864829,1721597442344,-174.38964159,0.00011105,2]
[332864831,1721597442359,-155.0,0.00011105,2]
[332864834,1721597442376,-155.33935041,0.00011105,2]
[332864836,1721597442390,-19663.15203905,0.00011105,2]
[332864839,1721597442406,-165.23,0.0001112,2]
[332864841,1721597442419,-246.53949848,0.00011161,2]
[332864844,1721597442434,-155.34702634,0.00011161,2]
[332864846,1721597442448,-211.67761017,0.00011161,2]
[332864849,1721597442462,-10000.0,0.00011163,2]
[332864852,1721597442477,-25289.08928287,0.00011186,2]
[332864854,1721597442492,-1445.92071075,0.00011186,2]
[332864857,1721597442506,-155.0,0.00011186,2]
[332864859,1721597442520,-19580.0,0.00011201,2]
[332864862,1721597442535,-528.18990579,0.00011206,2]
[332864864,1721597442548,-236.00243342,0.00011206,2]
[332864866,1721597442562,-7356.36814605,0.00011304,2]
[332864869,1721597442577,-155.0,0.00011322,2]
[332864871,1721597442591,-242.77519857,0.00011324,2]
[332864874,1721597442608,-155.0,0.00011525,2]
[332864876,1721597442622,-387.33539514,0.00011549,2]
[332864879,1721597442636,-2380.7156,0.000116,2]
[332864881,1721597442649,-175.6392,0.000117,2]
[332864884,1721597442664,-11495.1204,0.000117,2]
[332864886,1721597442679,-629.7,0.000117,2]
[332864888,1721597442694,-2150.3034,0.000117,2]
[332864890,1721597442707,-255.0,0.00011731,2]
[332864893,1721597442721,-549.0,0.00011738,2]
[332864896,1721597442736,-2381.0,0.00011738,2]
[332864898,1721597442749,-3273.0,0.00011738,2]
[332864900,1721597442763,-1991.0,0.00011738,2]
[332864903,1721597442781,-1253.0,0.00011738,2]
[332864906,1721597442797,-362.0,0.00011738,2]
[332864908,1721597442812,-1663.0,0.00011738,2]
[332864911,1721597442827,-5120.0,0.00011738,2]
[332864913,1721597442842,-1829.0,0.00011738,2]
[332864915,1721597442857,-1200.0,0.00011738,2]
[332864918,1721597442872,-178.972,0.00011738,2]
[332864920,1721597442885,-810.0,0.00011738,2]
[332864923,1721597442901,-450.647,0.00011738,2]
[332864925,1721597442914,-445.0,0.00011738,2]
[332864927,1721597442929,-153.68776239,0.00011797,2]
[332864930,1721597442942,-2233.21503504,0.000118,2]
[332864934,1721597442955,-1000.0,0.000118,2]
[332864937,1721597442968,-14712.6501,0.000118,2]
[332864941,1721597442981,-466.9961,0.000118,2]
[332864945,1721597442994,-5997.0742,0.000118,2]
[332864948,1721597443006,-461.36,0.000118,2]
[332864951,1721597443018,-120781.6135,0.000118,2]
[332864956,1721597443031,-15550.345,0.000118,2]
[332864959,1721597443045,-1000.0,0.000118,2]
[332864962,1721597443058,-848.44,0.000118,2]
[332864965,1721597443071,-150.0,0.000118,2]
[332864967,1721597443084,-165.644,0.000118,2]
[332865007,1721597443723,-230.0229,0.000118,2]
[332865013,1721597443771,-1042.96981773,0.000118,2]
[332865016,1721597443796,-2000.0,0.000118,2]
[332865020,1721597443819,-1499.12304622,0.000118,2]
[332865022,1721597443828,-7500.0,0.000118,2]
[332865024,1721597443838,-525.28727668,0.000118,2]
[332865026,1721597443848,-150.50133856,0.000118,2]
[332865028,1721597443858,-11626.39244204,0.000118,2]
[332865030,1721597443867,-834.51376712,0.000118,2]
[332865031,1721597443877,-220.81,0.00011808,3]
[332865034,1721597443887,-167.57,0.00011818,2]
[332865035,1721597443897,-890.94883011,0.00011872,2]
[332865037,1721597443906,-158732.22479241,0.0001188,2]
[332865039,1721597443916,-5147.96166671,0.0001189,2]
[332865041,1721597443925,-9422.8815867,0.00011897,2]
[332865043,1721597443935,-36932.8826989,0.00011897,2]
[332865045,1721597443944,-115446.7239863,0.00011897,2]
[332865047,1721597443954,-99050.1591707,0.00011897,2]
[332865049,1721597443963,-11679.4734842,0.00011897,2]
[332865051,1721597443974,-180.92422887,0.00011899,2]
[332865053,1721597443984,-687882.70203352,0.000119,2]
[332865055,1721597443997,-600687.68155802,0.000119,2]
[332865057,1721597444008,-965327.89768321,0.000119,2]
[332865101,1721597444971,-155.74816455,0.00011186,2]
[332865102,1721597444982,-1794.25183545,0.000119,2]
[332865103,1721597444994,-8754.77445779,0.000119,2]
[332865104,1721597445006,-1500.04768187,0.000119,2]
[332865105,1721597445017,-495.58079881,0.000119,2]
[332865106,1721597445036,-13187.61551572,0.000119,2]
[332865107,1721597445054,-1449.45668,0.00011176,2]
[332865108,1721597445066,-1319.07941141,0.00011176,2]
[332865109,1721597445082,-4805.86270306,0.00011176,2]
[332865110,1721597445091,-60307.28775024,0.000119,2]
[332865112,1721597446012,-210.40265388,0.00010704,2]
[332865113,1721597446023,-155.0,0.00011384,2]
[332865114,1721597446032,-317.01313143,0.00011659,2]
[332865115,1721597446180,-752.98686857,0.00011659,2]
[332865116,1721597446190,-265.87813143,0.000118,2]
[332865117,1721597446423,-567.51186857,0.000118,2]
[332865118,1721597446433,-72542.8180668,0.000119,2]
[332865383,1721598025305,200.0,9.02e-05,2]
[332865400,1721598251264,905.77,8.772e-05,2]
[332865406,1721598487353,150.0,0.00025,110]
[332865410,1721598493417,150.0,0.00025,110]
[332865411,1721598493484,150.0,0.00025,110]
[332865412,1721598493554,150.0,0.00025,110]
[332865413,1721598493592,150.0,0.00025,110]
[332865414,1721598493805,150.0,0.00025,110]
[332865415,1721598494278,150.0,0.00025,110]
[332865416,1721598494732,150.0,0.00025,110]
[332865417,1721598495178,150.0,0.00025,110]
[332865419,1721598495659,150.0,0.00025,110]
[332865424,1721598500183,150.0,0.00025,111]
[332865425,1721598500652,150.0,0.00025,111]
[332865426,1721598501083,150.0,0.00025,111]
[332865427,1721598501517,150.0,0.00025,111]
[332865428,1721598501921,150.0,0.00025,111]
[332865429,1721598502364,150.0,0.00025,111]
[332865430,1721598502745,150.0,0.00025,111]
[332865431,1721598503173,150.0,0.00025,111]
[332865432,1721598505231,150.0,0.00025,111]
[332865433,1721598505260,150.0,0.00025,111]
[332865434,1721598507205,150.0,0.00025,112]
[332865435,1721598507659,150.0,0.00025,112]
[332865436,1721598508089,150.0,0.00025,112]
[332865437,1721598508522,150.0,0.00025,112]
[332865438,1721598508915,150.0,0.00025,112]
[332865439,1721598509354,150.0,0.00025,112]
[332865440,1721598509753,150.0,0.00025,112]
[332865442,1721598510168,150.0,0.00025,112]
[332865444,1721598510602,150.0,0.00025,112]
[332865448,1721598511016,150.0,0.00025,112]
[332865454,1721598514034,150.0,0.00025,113]
[332865455,1721598514421,150.0,0.00025,113]
[332865456,1721598514855,150.0,0.00025,113]
[332865462,1721598516817,150.0,0.00025,113]
[332865463,1721598516891,150.0,0.00025,113]
[332865464,1721598516947,150.0,0.00025,113]
[332865465,1721598516984,150.0,0.00025,113]
[332865467,1721598517033,150.0,0.00025,113]
[332865469,1721598517444,150.0,0.00025,113]
[332865471,1721598517864,150.0,0.00025,113]
[332865472,1721598520892,150.0,0.00025,114]
[332865473,1721598521350,150.0,0.00025,114]
[332865474,1721598521765,150.0,0.00025,114]
[332865475,1721598522195,150.0,0.00025,114]
[332865476,1721598522633,150.0,0.00025,114]
[332865477,1721598523061,150.0,0.00025,114]
[332865478,1721598523522,150.0,0.00025,114]
[332865479,1721598523972,150.0,0.00025,114]
[332865480,1721598524808,150.0,0.00025,114]
[332865481,1721598524871,150.0,0.00025,114]
[332865482,1721598529592,150.0,0.00025,115]
[332865483,1721598529735,150.0,0.00025,115]
[332865484,1721598529779,150.0,0.00025,115]
[332865486,1721598529823,150.0,0.00025,115]
[332865488,1721598529869,150.0,0.00025,115]
[332865491,1721598529999,150.0,0.00025,115]
[332865492,1721598530436,150.0,0.00025,115]
[332865493,1721598530859,150.0,0.00025,115]
[332865494,1721598531312,150.0,0.00025,115]
[332865495,1721598531795,150.0,0.00025,115]
[332865496,1721598547048,150.0,0.00025,116]
[332865497,1721598547847,150.0,0.00025,116]
[332865498,1721598548332,150.0,0.00025,116]
[332865499,1721598548685,150.0,0.00025,116]
[332865500,1721598549044,150.0,0.00025,116]
[332865501,1721598549468,150.0,0.00025,116]
[332865502,1721598549886,150.0,0.00025,116]
[332865511,1721598550281,150.0,0.00025,116]
[332865530,1721598550722,150.0,0.00025,116]
[332865550,1721598551153,150.0,0.00025,116]
[332865602,1721598554658,150.0,0.00025,117]
[332865603,1721598555475,150.0,0.00025,117]
[332865606,1721598555862,150.0,0.00025,117]
[332865607,1721598556237,150.0,0.00025,117]
[332865608,1721598556659,150.0,0.00025,117]
[332865609,1721598557029,150.0,0.00025,117]
[332865610,1721598557417,150.0,0.00025,117]
[332865611,1721598557806,150.0,0.00025,117]
[332865612,1721598558203,150.0,0.00025,117]
[332865614,1721598558651,150.0,0.00025,117]
[332865634,1721598607127,150.0,0.00024,60]
[332865636,1721598609498,150.0,0.00024,60]
[332865637,1721598609931,150.0,0.00024,60]
[332865639,1721598612350,150.0,0.00024,60]
[332865640,1721598612413,150.0,0.00024,60]
[332865641,1721598614683,150.0,0.00024,60]
[332865642,1721598615107,150.0,0.00024,60]
[332865643,1721598615522,150.0,0.00024,60]
[332865644,1721598615902,150.0,0.00024,60]
[332865645,1721598616345,150.0,0.00024,60]
[332865646,1721598619216,150.0,0.00024,61]
[332865647,1721598619687,150.0,0.00024,61]
[332865648,1721598620123,150.0,0.00024,61]
[332865649,1721598620550,150.0,0.00024,61]
[332865650,1721598620937,150.0,0.00024,61]
[332865651,1721598621360,150.0,0.00024,61]
[332865652,1721598621778,150.0,0.00024,61]
[332865653,1721598622190,150.0,0.00024,61]
[332865655,1721598624166,150.0,0.00024,61]
[332865656,1721598624207,150.0,0.00024,61]
[332865657,1721598625874,150.0,0.00024,62]
[332865658,1721598626328,150.0,0.00024,62]
[332865659,1721598626815,150.0,0.00024,62]
[332865660,1721598627201,150.0,0.00024,62]
[332865661,1721598627631,150.0,0.00024,62]
[332865662,1721598628022,150.0,0.00024,62]
[332865663,1721598628437,150.0,0.00024,62]
[332865664,1721598628857,150.0,0.00024,62]
[332865665,1721598629303,150.0,0.00024,62]
[332865666,1721598629699,150.0,0.00024,62]
[332865671,1721598630821,200.62,0.0001189,30]
[332865696,1721598633049,-250.0,0.0001062,2]
[332865697,1721598633059,-300.0,0.00010632,2]
[332865698,1721598633069,-1254.63523304,0.00010633,2]
[332865699,1721598633079,-292.57856873,0.00010633,2]
[332865700,1721598633088,-2837.16238839,0.00010633,2]
[332865701,1721598633098,-235.94587051,0.00010633,2]
[332865702,1721598633108,-1000.0,0.00010637,2]
[332865703,1721598633118,-247.34,0.00010643,2]
[332865704,1721598633127,-183.81,0.00010673,2]
[332865705,1721598633139,-250.0,0.00010684,2]
[332865706,1721598633148,-6795.72793933,0.00010694,2]
[332865707,1721598633274,-3438.37206067,0.00010694,2]
[332865708,1721598633285,-150.0,0.00010904,2]
[332865709,1721598633295,-155.0,0.00010933,2]
[332865710,1721598633305,-155.0,0.00010933,2]
[332865711,1721598633315,-211.43777772,0.00010933,2]
[332865712,1721598633324,-1823.76015388,0.00010933,2]
[332865713,1721598633335,-167.57,0.00010952,2]
[332865715,1721598633345,-184.06,0.00010984,2]
[332865716,1721598633355,-905.77,0.00011036,2]
[332865717,1721598633364,-346.26,0.00011104,2]
[332865719,1721598633374,-150.99,0.00011104,2]
[332865720,1721598633384,-150.0,0.00011104,2]
[332865721,1721598633394,-5827.34177172,0.00011105,2]
[332865785,1721598638380,-5945.74677708,0.00011105,2]
[332865786,1721598638398,-1003.134615,0.00011105,2]
[332865787,1721598638540,-1620.467466,0.00011105,2]
[332865788,1721598638552,-660.96571054,0.00011105,2]
[332865795,1721598640506,-3467.062364,0.00011105,2]
[332865796,1721598640518,-1024.335,0.00011105,2]
[332865797,1721598641210,150.0,0.00024,66]
[332865798,1721598641808,150.0,0.00024,66]
[332865799,1721598642165,-1372.25839245,0.00011105,2]
[332865800,1721598642174,-528.18990579,0.00011105,2]
[332865801,1721598642184,-155.0,0.00011105,2]
[332865802,1721598642195,-692.42718412,0.00011105,2]
[332865803,1721598642205,-329.44926346,0.00011105,2]
[332865805,1721598642215,-2629.45245742,0.00011176,2]
[332865806,1721598642225,-484.49996538,0.00011322,2]
[332865808,1721598642235,-484.49996538,0.00011322,2]
[332865810,1721598642245,-342.0860799,0.00011525,2]
[332865812,1721598642254,-308.10533809,0.0001159,2]
[332865814,1721598642264,-670.833236,0.00011662,2]
[332865815,1721598642273,-420.0,0.00011687,2]
[332865817,1721598642283,-1918.7036,0.000117,2]
[332865819,1721598642293,-1663.0,0.00011738,2]
[332865821,1721598642303,-362.0,0.00011738,2]
[332865822,1721598642312,-1253.0,0.00011738,2]
[332865824,1721598642322,-1829.0,0.00011738,2]
[332865826,1721598642331,-808.0,0.00011738,2]
[332865828,1721598642342,-396.917,0.00011738,2]
[332865830,1721598642352,-679.42,0.00011738,2]
[332865832,1721598642362,-266.42933855,0.00011738,2]
[332865834,1721598642374,-247.63466145,0.00011738,2]
[332865835,1721598642384,-2638.906,0.00011738,2]
[332865837,1721598642394,-190.924,0.00011738,2]
[332865839,1721598642404,-191.929,0.00011738,2]
[332865841,1721598642414,-1000.0,0.000118,2]
[332865843,1721598642423,-4596.3769,0.000118,2]
[332865844,1721598642432,-1948.42500262,0.000118,2]
[332865846,1721598642444,-734.3900004,0.000118,2]
[332865850,1721598642475,150.0,0.00024,66]
[332865874,1721598642741,150.0,0.00024,66]
[332865914,1721598643194,150.0,0.00024,66]
[332865935,1721598643364,-3530.3334819,0.000118,2]
[332865937,1721598643376,-880.45,0.000118,2]
[332865961,1721598643632,150.0,0.00024,66]
[332866031,1721598644810,150.0,0.00024,66]
[332866033,1721598644878,150.0,0.00024,66]
[332866053,1721598645077,150.0,0.00024,66]
[332866142,1721598646008,150.0,0.00024,66]
[332866183,1721598646400,-302.27097538,0.00011525,2]
[332866220,1721598648736,150.0,0.00024,67]
[332866221,1721598649211,150.0,0.00024,67]
[332866222,1721598649644,150.0,0.00024,67]
[332866223,1721598650110,150.0,0.00024,67]
[332866224,1721598650540,150.0,0.00024,67]
[332866225,1721598651430,150.0,0.00024,67]
[332866226,1721598651875,150.0,0.00024,67]
[332866227,1721598652343,150.0,0.00024,67]
[332866228,1721598652758,150.0,0.00024,67]
[332866230,1721598656231,150.0,0.00024,68]
[332866231,1721598656716,150.0,0.00024,68]
[332866232,1721598657209,150.0,0.00024,68]
[332866233,1721598657626,150.0,0.00024,68]
[332866234,1721598658070,150.0,0.00024,68]
[332866235,1721598658537,150.0,0.00024,68]
[332866236,1721598659947,150.0,0.00024,68]
[332866237,1721598660013,150.0,0.00024,68]
[332866238,1721598660063,150.0,0.00024,68]
[332866239,1721598660543,150.0,0.00024,68]
[332866240,1721598664395,150.0,0.00024,67]
[332866242,1721598683035,150.0,0.00024,69]
[332866243,1721598683174,150.0,0.00024,69]
[332866244,1721598683653,150.0,0.00024,69]
[332866245,1721598684061,150.0,0.00024,69]
[332866246,1721598684406,-593.122,0.00010533,2]
[332866247,1721598684439,-300.0,0.000109,3]
[332866248,1721598684463,-593.122,0.00011,4]
[332866249,1721598684479,-106.878,0.00011,4]
[332866250,1721598684489,-193.122,0.000111,4]
[332866251,1721598684500,-644.756,0.000111,4]
[332866252,1721598684529,150.0,0.00024,69]
[332866253,1721598684860,150.0,0.00024,69]
[332866254,1721598685239,150.0,0.00024,69]
[332866255,1721598685690,150.0,0.00024,69]
[332866256,1721598686137,150.0,0.00024,69]
[332866257,1721598686615,150.0,0.00024,69]
[332866258,1721598695579,150.0,0.00024,73]
[332866259,1721598696054,150.0,0.00024,73]
[332866260,1721598696480,150.0,0.00024,73]
[332866261,1721598696926,150.0,0.00024,73]
[332866262,1721598697353,150.0,0.00024,73]
[332866263,1721598697771,150.0,0.00024,73]
[332866264,1721598698161,150.0,0.00024,73]
[332866265,1721598699034,150.0,0.00024,73]
[332866266,1721598699088,150.0,0.00024,73]
[332866267,1721598699479,150.0,0.00024,73]
[332866268,1721598703373,150.0,0.00024,74]
[332866269,1721598703925,150.0,0.00024,74]
[332866270,1721598706724,150.0,0.00024,74]
[332866271,1721598706782,150.0,0.00024,74]
[332866272,1721598706828,150.0,0.00024,74]
[332866273,1721598706910,150.0,0.00024,74]
[332866274,1721598706953,150.0,0.00024,74]
[332866275,1721598707033,150.0,0.00024,74]
[332866276,1721598707100,150.0,0.00024,74]
[332866277,1721598707553,150.0,0.00024,74]
[332866278,1721598710973,150.0,0.00024,75]
[332866279,1721598711449,150.0,0.00024,75]
[332866280,1721598711909,150.0,0.00024,75]
[332866281,1721598712355,150.0,0.00024,75]
[332866282,1721598712789,150.0,0.00024,75]
[332866283,1721598713218,150.0,0.00024,75]
[332866284,1721598713645,150.0,0.00024,75]
[332866285,1721598714107,150.0,0.00024,75]
[332866286,1721598714535,150.0,0.00024,75]
[332866287,1721598714977,150.0,0.00024,75]
[332866288,1721598718539,150.0,0.00024,76]
[332866289,1721598718571,150.0,0.00024,76]
[332866290,1721598718829,150.0,0.00024,76]
[332866291,1721598719270,150.0,0.00024,76]
[332866292,1721598719725,150.0,0.00024,76]
[332866293,1721598720142,150.0,0.00024,76]
[332866294,1721598720671,150.0,0.00024,76]
[332866295,1721598720997,150.0,0.00024,76]
[332866296,1721598721435,150.0,0.00024,76]
[332866297,1721598721925,150.0,0.00024,76]
[332866300,1721598778331,150.0,0.00025,111]
[332866301,1721598779626,150.0,0.00025,111]
[332866302,1721598780102,150.0,0.00025,111]
[332866303,1721598780538,150.0,0.00025,111]
[332866304,1721598780953,150.0,0.00025,111]
[332866305,1721598781412,150.0,0.00025,111]
[332866306,1721598781837,150.0,0.00025,111]
[332866307,1721598782313,150.0,0.00025,111]
[332866308,1721598782685,150.0,0.00025,111]
[332866309,1721598783126,150.0,0.00025,111]
[332866310,1721598786482,150.0,0.00025,110]
[332866311,1721598786937,150.0,0.00025,110]
[332866312,1721598789078,150.0,0.00025,110]
[332866313,1721598789155,150.0,0.00025,110]
[332866314,1721598789223,150.0,0.00025,110]
[332866315,1721598789296,150.0,0.00025,110]
[332866316,1721598789351,150.0,0.00025,110]
[332866317,1721598789492,150.0,0.00025,110]
[332866318,1721598789956,150.0,0.00025,110]
[332866319,1721598790431,150.0,0.00025,110]
[332866320,1721598793974,150.0,0.00025,112]
[332866321,1721598794438,150.0,0.00025,112]
[332866322,1721598794897,150.0,0.00025,112]
[332866323,1721598795388,150.0,0.00025,112]
[332866324,1721598795825,150.0,0.00025,112]
[332866325,1721598796303,150.0,0.00025,112]
[332866326,1721598797028,150.0,0.00025,112]
[332866327,1721598797144,150.0,0.00025,112]
[332866328,1721598798054,150.0,0.00025,112]
[332866329,1721598798283,150.0,0.00025,112]
[332866330,1721598801275,150.0,0.00025,113]
[332866331,1721598801493,150.0,0.00025,113]
[332866332,1721598801929,150.0,0.00025,113]
[332866333,1721598802397,150.0,0.00025,113]
[332866334,1721598802817,150.0,0.00025,113]
[332866335,1721598803374,150.0,0.00025,113]